[Event "Early-Titled-Tuesday-Blitz-May-07-2024"]
[Site "Chess.com"]
[Date "2024.05.07"]
[Round "10"]
[White "emeli_chess"]
[Black "rookpower2004"]
[Result "1-0"]
[WhiteElo "2436"]
[BlackElo "2522"]
[TimeControl "180+1"]
[EndTime "10:03:33 PDT"]
[Termination "emeli_chess won on time"]

1. d4 {[%clk 0:03:00.9]} 1... d5 {[%clk 0:02:42.9]} 2. c4 {[%clk 0:03:00.2]}
2... e6 {[%clk 0:02:43.3]} 3. Nc3 {[%clk 0:02:59.9]} 3... Nf6 {[%clk 0:02:43.8]}
4. cxd5 {[%clk 0:03:00.2]} 4... exd5 {[%clk 0:02:42.7]} 5. Bg5 {[%clk
0:03:00.7]} 5... Be7 {[%clk 0:02:42.4]} 6. e3 {[%clk 0:03:00.7]} 6... c6 {[%clk
0:02:41.9]} 7. Bd3 {[%clk 0:02:59.7]} 7... h6 {[%clk 0:02:41.3]} 8. Bh4 {[%clk
0:02:58.8]} 8... O-O {[%clk 0:02:36.5]} 9. Qc2 {[%clk 0:02:58]} 9... Re8 {[%clk
0:02:32.5]} 10. Nf3 {[%clk 0:02:52.1]} 10... Nbd7 {[%clk 0:02:26.9]} 11. O-O
{[%clk 0:02:51.5]} 11... Nh5 {[%clk 0:02:19.8]} 12. Bxe7 {[%clk 0:02:46.5]}
12... Qxe7 {[%clk 0:02:20.7]} 13. Rab1 {[%clk 0:02:30.6]} 13... b6 {[%clk
0:02:17.7]} 14. b4 {[%clk 0:02:29.3]} 14... Bb7 {[%clk 0:02:18.2]} 15. a4 {[%clk
0:02:13.7]} 15... Rac8 {[%clk 0:02:08]} 16. a5 {[%clk 0:02:11]} 16... Nf8 {[%clk
0:02:06.3]} 17. axb6 {[%clk 0:02:03.3]} 17... axb6 {[%clk 0:02:07.1]} 18. Qb3
{[%clk 0:01:49.1]} 18... Nf6 {[%clk 0:02:00.8]} 19. Ne5 {[%clk 0:01:44.8]} 19...
N8d7 {[%clk 0:01:53.7]} 20. f4 {[%clk 0:01:37.3]} 20... Rb8 {[%clk 0:01:38.4]}
21. h3 {[%clk 0:01:30.5]} 21... c5 {[%clk 0:01:29.8]} 22. bxc5 {[%clk
0:01:29.2]} 22... bxc5 {[%clk 0:01:30.7]} 23. Qd1 {[%clk 0:01:13.5]} 23... Nf8
{[%clk 0:01:20.6]} 24. Bc2 {[%clk 0:00:57.2]} 24... N6d7 {[%clk 0:01:02.5]} 25.
Qd3 {[%clk 0:00:51.3]} 25... c4 {[%clk 0:00:53.2]} 26. Qf5 {[%clk 0:00:45.5]}
26... Bc8 {[%clk 0:00:33.1]} 27. Qh5 {[%clk 0:00:36.3]} 27... Rxb1 {[%clk
0:00:27.7]} 28. Bxb1 {[%clk 0:00:32.7]} 28... Nb6 {[%clk 0:00:22.9]} 29. Re1
{[%clk 0:00:27]} 29... Be6 {[%clk 0:00:17.5]} 30. Qf3 {[%clk 0:00:23.6]} 30...
Qb4 {[%clk 0:00:16.5]} 31. Rc1 {[%clk 0:00:21.1]} 31... Qb2 {[%clk 0:00:15.6]}
32. Qd1 {[%clk 0:00:21.1]} 32... Rb8 {[%clk 0:00:13.6]} 33. Qc2 {[%clk
0:00:20.9]} 33... Qxc2 {[%clk 0:00:13]} 34. Bxc2 {[%clk 0:00:20.6]} 34... f6
{[%clk 0:00:13.6]} 35. Nf3 {[%clk 0:00:17.9]} 35... Nbd7 {[%clk 0:00:12.5]} 36.
Rb1 {[%clk 0:00:16.8]} 36... Rxb1+ {[%clk 0:00:12.5]} 37. Bxb1 {[%clk
0:00:17.1]} 37... Kf7 {[%clk 0:00:12.1]} 38. e4 {[%clk 0:00:16.6]} 38... dxe4
{[%clk 0:00:11.4]} 39. Bxe4 {[%clk 0:00:16.5]} 39... Nb6 {[%clk 0:00:10]} 40. d5
{[%clk 0:00:16.3]} 40... Bc8 {[%clk 0:00:09.7]} 41. Nd4 {[%clk 0:00:16.2]} 41...
Nfd7 {[%clk 0:00:08.4]} 42. Bf5 {[%clk 0:00:15.9]} 42... Nc5 {[%clk 0:00:07.8]}
43. Bxc8 {[%clk 0:00:15.1]} 43... Nxc8 {[%clk 0:00:08.7]} 44. Kf2 {[%clk
0:00:15]} 44... Nd6 {[%clk 0:00:08.2]} 45. Ke3 {[%clk 0:00:14.8]} 45... Ke7
{[%clk 0:00:07.1]} 46. g4 {[%clk 0:00:14.6]} 46... g6 {[%clk 0:00:06.3]} 47. f5
{[%clk 0:00:14.4]} 47... g5 {[%clk 0:00:05.1]} 48. Ne6 {[%clk 0:00:13.5]} 48...
Nxe6 {[%clk 0:00:03.7]} 49. dxe6 {[%clk 0:00:13.3]} 49... Nb7 {[%clk 0:00:01.9]}
50. Nd5+ {[%clk 0:00:13]} 1-0

[Event "Early-Titled-Tuesday-Blitz-May-07-2024"]
[Site "Chess.com"]
[Date "2024.05.07"]
[Round "10"]
[White "Ivan11Martic"]
[Black "Payyappat"]
[Result "0-1"]
[WhiteElo "2615"]
[BlackElo "2523"]
[TimeControl "180+1"]
[EndTime "10:03:37 PDT"]
[Termination "Payyappat won on time"]

1. e4 {[%clk 0:03:00.9]} 1... c6 {[%clk 0:02:57.9]} 2. d4 {[%clk 0:02:59.4]}
2... d5 {[%clk 0:02:58.8]} 3. exd5 {[%clk 0:02:57.7]} 3... cxd5 {[%clk
0:02:58.3]} 4. Bd3 {[%clk 0:02:58]} 4... Nc6 {[%clk 0:02:57.1]} 5. c3 {[%clk
0:02:56.6]} 5... Qc7 {[%clk 0:02:57.6]} 6. Ne2 {[%clk 0:02:55]} 6... Bg4 {[%clk
0:02:56.3]} 7. f3 {[%clk 0:02:52.1]} 7... Bh5 {[%clk 0:02:54.1]} 8. O-O {[%clk
0:02:49.9]} 8... Bg6 {[%clk 0:02:48.1]} 9. Nf4 {[%clk 0:02:45]} 9... e6 {[%clk
0:02:46.3]} 10. Qe2 {[%clk 0:02:41]} 10... O-O-O {[%clk 0:02:42.9]} 11. a4
{[%clk 0:02:37.6]} 11... Bd6 {[%clk 0:02:41.1]} 12. Qe3 {[%clk 0:02:31.8]} 12...
Nge7 {[%clk 0:02:36.6]} 13. Na3 {[%clk 0:02:28.9]} 13... a6 {[%clk 0:02:34.5]}
14. g3 {[%clk 0:02:09]} 14... Bxf4 {[%clk 0:02:27.5]} 15. Qxf4 {[%clk
0:02:09.9]} 15... Qxf4 {[%clk 0:02:24.9]} 16. Bxf4 {[%clk 0:02:10.8]} 16... Bxd3
{[%clk 0:02:24.1]} 17. Rfe1 {[%clk 0:02:05.4]} 17... Bg6 {[%clk 0:02:22.5]} 18.
Nb5 {[%clk 0:01:58.8]} 18... e5 {[%clk 0:02:11.4]} 19. dxe5 {[%clk 0:01:53.8]}
19... axb5 {[%clk 0:02:03.1]} 20. axb5 {[%clk 0:01:54.7]} 20... Nb8 {[%clk
0:01:56.7]} 21. e6 {[%clk 0:01:54.1]} 21... fxe6 {[%clk 0:01:53.6]} 22. Rxe6
{[%clk 0:01:55]} 22... Kd7 {[%clk 0:01:50.1]} 23. Rb6 {[%clk 0:01:46.2]} 23...
Ke8 {[%clk 0:01:43.7]} 24. Rxb7 {[%clk 0:01:42.2]} 24... Nd7 {[%clk 0:01:40.9]}
25. Re1 {[%clk 0:01:14.6]} 25... Kf7 {[%clk 0:01:36]} 26. Bc7 {[%clk 0:01:13.7]}
26... Nc8 {[%clk 0:01:11.2]} 27. Bxd8 {[%clk 0:01:09.8]} 27... Rxd8 {[%clk
0:01:09.9]} 28. b6 {[%clk 0:00:55]} 28... Nxb6 {[%clk 0:01:04.8]} 29. Kf2 {[%clk
0:00:46.9]} 29... Kf6 {[%clk 0:00:59.6]} 30. Ra1 {[%clk 0:00:44.2]} 30... Nc4
{[%clk 0:00:52]} 31. b3 {[%clk 0:00:39.8]} 31... Nce5 {[%clk 0:00:49.9]} 32.
Ra6+ {[%clk 0:00:37.5]} 32... Kf5 {[%clk 0:00:44.9]} 33. Rd6 {[%clk 0:00:34.6]}
33... Nd3+ {[%clk 0:00:33.8]} 34. Ke3 {[%clk 0:00:29.1]} 34... N3c5 {[%clk
0:00:30.2]} 35. Rb5 {[%clk 0:00:20.4]} 35... Ke5 {[%clk 0:00:24.2]} 36. Rc6
{[%clk 0:00:17.4]} 36... Re8 {[%clk 0:00:15.4]} 37. b4 {[%clk 0:00:12.1]} 37...
Ne6 {[%clk 0:00:11.1]} 38. f4+ {[%clk 0:00:10.9]} 38... Kf5 {[%clk 0:00:10.4]}
39. h3 {[%clk 0:00:09.3]} 39... Nxf4+ {[%clk 0:00:09.7]} 40. Kf3 {[%clk
0:00:08.9]} 40... Ne5+ {[%clk 0:00:10.1]} 41. Kf2 {[%clk 0:00:07.1]} 41... Nfd3+
{[%clk 0:00:10.5]} 42. Kg2 {[%clk 0:00:04.7]} 42... Nxc6 {[%clk 0:00:10.6]} 43.
Rxd5+ {[%clk 0:00:04.4]} 43... Nde5 {[%clk 0:00:11]} 44. b5 {[%clk 0:00:04.3]}
44... Ne7 {[%clk 0:00:11.1]} 45. Rc5 {[%clk 0:00:03.7]} 45... Ke6 {[%clk
0:00:11.3]} 46. c4 {[%clk 0:00:03.6]} 46... Be4+ {[%clk 0:00:11.5]} 47. Kf2
{[%clk 0:00:03.2]} 47... Rf8+ {[%clk 0:00:11.3]} 48. Ke3 {[%clk 0:00:03.3]}
48... Bb7 {[%clk 0:00:11.9]} 49. Rc7 {[%clk 0:00:01.3]} 49... Rf3+ {[%clk
0:00:11.7]} 50. Kd4 {[%clk 0:00:01.8]} 50... Nf5+ {[%clk 0:00:11.6]} 51. Kc5
{[%clk 0:00:01.9]} 51... Nd3+ {[%clk 0:00:11.8]} 52. Kb6 {[%clk 0:00:01.9]}
52... Be4 {[%clk 0:00:12.3]} 53. c5 {[%clk 0:00:02.1]} 53... Nxc5 {[%clk
0:00:12.6]} 54. Rxc5 {[%clk 0:00:02]} 54... Rxg3 {[%clk 0:00:13.1]} 55. Rc8
{[%clk 0:00:01.7]} 55... Nd6 {[%clk 0:00:13.4]} 56. Kc7 {[%clk 0:00:01.5]} 56...
Rc3+ {[%clk 0:00:13.2]} 57. Kb6 {[%clk 0:00:00.6]} 57... Rxc8 {[%clk 0:00:13.7]}
58. Ka7 {[%clk 0:00:01.4]} 58... Rc7+ {[%clk 0:00:13.9]} 59. Kb6 {[%clk
0:00:01.3]} 59... Rb7+ {[%clk 0:00:14.8]} 60. Ka6 {[%clk 0:00:01.4]} 60... Rxb5
{[%clk 0:00:15.7]} 61. Ka7 {[%clk 0:00:01.4]} 61... Bb7 {[%clk 0:00:16.3]} 62.
h4 {[%clk 0:00:00.7]} 62... Nc8+ {[%clk 0:00:16.3]} 63. Kb8 {[%clk 0:00:00.4]}
63... Kd7 {[%clk 0:00:16.3]} 0-1

[Event "Early-Titled-Tuesday-Blitz-May-07-2024"]
[Site "Chess.com"]
[Date "2024.05.07"]
[Round "10"]
[White "tetrix83"]
[Black "Gareth-Bale11"]
[Result "0-1"]
[WhiteElo "2680"]
[BlackElo "2903"]
[TimeControl "180+1"]
[EndTime "10:03:43 PDT"]
[Termination "Gareth-Bale11 won on time"]

1. e4 {[%clk 0:03:00.9]} 1... c5 {[%clk 0:02:59.9]} 2. Nf3 {[%clk 0:03:00.8]}
2... Nc6 {[%clk 0:03:00.5]} 3. Bb5 {[%clk 0:03:00.4]} 3... e6 {[%clk 0:03:01]}
4. O-O {[%clk 0:02:59.6]} 4... Nge7 {[%clk 0:03:00]} 5. d4 {[%clk 0:02:58.4]}
5... cxd4 {[%clk 0:02:59.7]} 6. Nxd4 {[%clk 0:02:58.7]} 6... Ng6 {[%clk
0:03:00.3]} 7. Nc3 {[%clk 0:02:53.3]} 7... Bc5 {[%clk 0:02:55.3]} 8. Nb3 {[%clk
0:02:39.6]} 8... Bb6 {[%clk 0:02:54.7]} 9. Kh1 {[%clk 0:02:37.8]} 9... O-O
{[%clk 0:02:42]} 10. f4 {[%clk 0:02:37.5]} 10... Bc7 {[%clk 0:02:42.6]} 11. Be3
{[%clk 0:02:27.7]} 11... Kh8 {[%clk 0:02:32.3]} 12. Qh5 {[%clk 0:02:19.6]} 12...
Qh4 {[%clk 0:02:30]} 13. Qxh4 {[%clk 0:02:08.2]} 13... Nxh4 {[%clk 0:02:30.9]}
14. f5 {[%clk 0:01:54.7]} 14... exf5 {[%clk 0:01:31.2]} 15. exf5 {[%clk
0:01:45.9]} 15... d6 {[%clk 0:01:30.3]} 16. Nd5 {[%clk 0:01:44.9]} 16... Bd8
{[%clk 0:01:28.4]} 17. Bd3 {[%clk 0:01:32.6]} 17... Ne5 {[%clk 0:01:19.2]} 18.
Be4 {[%clk 0:01:31.4]} 18... Re8 {[%clk 0:01:09.7]} 19. Rae1 {[%clk 0:01:24.3]}
19... Ng4 {[%clk 0:01:05.9]} 20. Bd2 {[%clk 0:01:07.6]} 20... h5 {[%clk
0:00:23.1]} 21. g3 {[%clk 0:01:00.9]} 21... Bd7 {[%clk 0:00:22]} 22. gxh4 {[%clk
0:00:57.8]} 22... Bxh4 {[%clk 0:00:22.9]} 23. Nc7 {[%clk 0:00:21.7]} 23... Bxe1
{[%clk 0:00:16.1]} 24. Rxe1 {[%clk 0:00:12.3]} 24... Nf2+ {[%clk 0:00:13.1]} 25.
Kg1 {[%clk 0:00:12.3]} 25... Nxe4 {[%clk 0:00:12.9]} 26. Nxa8 {[%clk 0:00:12.2]}
26... Bxf5 {[%clk 0:00:02.6]} 27. Nd4 {[%clk 0:00:10.7]} 27... Bg6 {[%clk
0:00:02.3]} 28. Nc7 {[%clk 0:00:10.4]} 28... Rc8 {[%clk 0:00:02.9]} 29. Ba5
{[%clk 0:00:08]} 29... b6 {[%clk 0:00:02.9]} 30. Nd5 {[%clk 0:00:02.3]} 30...
bxa5 {[%clk 0:00:03.2]} 31. Ne7 {[%clk 0:00:02.6]} 31... Re8 {[%clk 0:00:03.2]}
32. Nxg6+ {[%clk 0:00:01.8]} 32... fxg6 {[%clk 0:00:04.1]} 33. c4 {[%clk
0:00:02.1]} 33... a4 {[%clk 0:00:03.9]} 34. Nc6 {[%clk 0:00:02.4]} 34... a6
{[%clk 0:00:03.8]} 35. Nb4 {[%clk 0:00:02.7]} 35... Re5 {[%clk 0:00:03.9]} 36.
Nxa6 {[%clk 0:00:02.4]} 36... Rg5+ {[%clk 0:00:04.2]} 37. Kf1 {[%clk 0:00:02.9]}
37... Nd2+ {[%clk 0:00:04.6]} 38. Ke2 {[%clk 0:00:03.2]} 38... Nxc4 {[%clk
0:00:05.5]} 39. Rc1 {[%clk 0:00:02.6]} 39... Nxb2 {[%clk 0:00:05]} 40. Rc8+
{[%clk 0:00:02.6]} 40... Kh7 {[%clk 0:00:05.3]} 41. Rd8 {[%clk 0:00:03.2]} 41...
Re5+ {[%clk 0:00:05.5]} 42. Kf3 {[%clk 0:00:03.6]} 42... Nc4 {[%clk 0:00:04.9]}
43. Nb4 {[%clk 0:00:03.7]} 43... g5 {[%clk 0:00:04.7]} 44. Nc6 {[%clk
0:00:03.7]} 44... g4+ {[%clk 0:00:04.5]} 45. Kf4 {[%clk 0:00:03.7]} 45... g5+
{[%clk 0:00:04.6]} 46. Kg3 {[%clk 0:00:03.4]} 46... Re3+ {[%clk 0:00:05.5]} 47.
Kg2 {[%clk 0:00:03.3]} 47... Kg6 {[%clk 0:00:05]} 48. Rc8 {[%clk 0:00:02.5]}
48... Kf6 {[%clk 0:00:03.3]} 49. Nd4 {[%clk 0:00:02.3]} 49... Ne5 {[%clk
0:00:03.3]} 50. Rf8+ {[%clk 0:00:02]} 50... Kg6 {[%clk 0:00:03.4]} 51. Re8
{[%clk 0:00:01.9]} 51... Rd3 {[%clk 0:00:03]} 52. Ne6 {[%clk 0:00:01.9]} 52...
Rd2+ {[%clk 0:00:03.1]} 53. Kf1 {[%clk 0:00:01.5]} 53... Nf3 {[%clk 0:00:03.6]}
54. Rd8 {[%clk 0:00:00.7]} 54... Nxh2+ {[%clk 0:00:03.4]} 55. Kg1 {[%clk
0:00:01.3]} 55... Nf3+ {[%clk 0:00:04.3]} 56. Kf1 {[%clk 0:00:02.2]} 56... g3
{[%clk 0:00:04.7]} 57. Rg8+ {[%clk 0:00:01.4]} 57... Kf7 {[%clk 0:00:04.9]} 0-1

[Event "Early-Titled-Tuesday-Blitz-May-07-2024"]
[Site "Chess.com"]
[Date "2024.05.07"]
[Round "10"]
[White "alpope"]
[Black "Goryachkina"]
[Result "0-1"]
[WhiteElo "2538"]
[BlackElo "2706"]
[TimeControl "180+1"]
[EndTime "10:03:43 PDT"]
[Termination "Goryachkina won by resignation"]

1. e4 {[%clk 0:03:00.9]} 1... c5 {[%clk 0:02:59.7]} 2. Ne2 {[%clk 0:03:00.6]}
2... Nc6 {[%clk 0:02:59.1]} 3. g3 {[%clk 0:03:00.2]} 3... g6 {[%clk 0:02:56.6]}
4. d4 {[%clk 0:03:00.2]} 4... cxd4 {[%clk 0:02:56.2]} 5. Nxd4 {[%clk 0:03:01.1]}
5... Bg7 {[%clk 0:02:56.1]} 6. Ne2 {[%clk 0:03:01.2]} 6... Nf6 {[%clk
0:02:52.5]} 7. Bg2 {[%clk 0:03:01.2]} 7... O-O {[%clk 0:02:51.8]} 8. Nbc3 {[%clk
0:03:01.5]} 8... d6 {[%clk 0:02:51.7]} 9. O-O {[%clk 0:03:02]} 9... Bd7 {[%clk
0:02:47.3]} 10. h3 {[%clk 0:03:02.4]} 10... Rc8 {[%clk 0:02:44.1]} 11. Nd5
{[%clk 0:03:00.4]} 11... Nxd5 {[%clk 0:02:37]} 12. exd5 {[%clk 0:03:01.3]} 12...
Ne5 {[%clk 0:02:37.2]} 13. a4 {[%clk 0:03:01.4]} 13... Qc7 {[%clk 0:02:30.7]}
14. Nd4 {[%clk 0:02:48]} 14... Nc4 {[%clk 0:02:05.6]} 15. c3 {[%clk 0:02:17.6]}
15... a6 {[%clk 0:02:01.9]} 16. Re1 {[%clk 0:02:07.6]} 16... Rce8 {[%clk
0:01:46.6]} 17. Ra2 {[%clk 0:02:02.6]} 17... e5 {[%clk 0:01:42.2]} 18. dxe6
{[%clk 0:02:02.4]} 18... fxe6 {[%clk 0:01:42.1]} 19. b3 {[%clk 0:01:51.5]} 19...
Ne5 {[%clk 0:01:27.9]} 20. c4 {[%clk 0:01:46.6]} 20... Nf7 {[%clk 0:01:18]} 21.
Rae2 {[%clk 0:01:43.6]} 21... e5 {[%clk 0:01:16]} 22. Nc2 {[%clk 0:01:37.7]}
22... Qc8 {[%clk 0:01:12.6]} 23. Kh2 {[%clk 0:01:35.9]} 23... Bc6 {[%clk
0:01:05.4]} 24. Bd5 {[%clk 0:01:34.3]} 24... Bxd5 {[%clk 0:01:01.8]} 25. Qxd5
{[%clk 0:01:35.2]} 25... Kh8 {[%clk 0:01:01.9]} 26. Rd1 {[%clk 0:01:20.4]} 26...
Bf6 {[%clk 0:00:56.4]} 27. Ne3 {[%clk 0:01:10.4]} 27... Be7 {[%clk 0:00:51.4]}
28. Ng4 {[%clk 0:01:09]} 28... h5 {[%clk 0:00:48.4]} 29. Nh6 {[%clk 0:01:08.5]}
29... Nxh6 {[%clk 0:00:35.9]} 30. Bxh6 {[%clk 0:01:09.4]} 30... Rf5 {[%clk
0:00:35.7]} 31. c5 {[%clk 0:01:06.2]} 31... dxc5 {[%clk 0:00:26.7]} 32. Rxe5
{[%clk 0:01:03.9]} 32... Rxf2+ {[%clk 0:00:08.5]} 33. Kg1 {[%clk 0:01:00.1]}
33... Rd8 {[%clk 0:00:04.3]} 34. Kxf2 {[%clk 0:00:55.6]} 34... Rxd5 {[%clk
0:00:04.2]} 35. Rdxd5 {[%clk 0:00:55.8]} 35... Qxh3 {[%clk 0:00:04]} 36. Bg5
{[%clk 0:00:09.3]} 36... Qh2+ {[%clk 0:00:03.8]} 37. Kf3 {[%clk 0:00:09]} 37...
Qh1+ {[%clk 0:00:03.9]} 38. Kf4 {[%clk 0:00:08.9]} 38... Qf1+ {[%clk 0:00:03.8]}
39. Ke3 {[%clk 0:00:09.3]} 39... Bxg5+ {[%clk 0:00:03.3]} 40. Rxg5 {[%clk
0:00:09.2]} 40... Qe1+ {[%clk 0:00:03.6]} 41. Kf4 {[%clk 0:00:09.6]} 41... Qf2+
{[%clk 0:00:03.2]} 42. Ke4 {[%clk 0:00:09.9]} 42... Qe2+ {[%clk 0:00:03.5]} 43.
Kf4 {[%clk 0:00:10.5]} 43... Qf2+ {[%clk 0:00:04]} 44. Ke5 {[%clk 0:00:10.3]}
44... Qe3+ {[%clk 0:00:03.2]} 45. Kd6 {[%clk 0:00:10.7]} 45... Kg7 {[%clk
0:00:03.2]} 46. Rxc5 {[%clk 0:00:11]} 46... Qxb3 {[%clk 0:00:03]} 47. a5 {[%clk
0:00:11]} 47... Qd3+ {[%clk 0:00:03]} 48. Rgd5 {[%clk 0:00:11.2]} 48... Qxg3+
{[%clk 0:00:03.2]} 49. Kd7 {[%clk 0:00:11]} 49... h4 {[%clk 0:00:03.6]} 50. Kc8
{[%clk 0:00:10.1]} 50... h3 {[%clk 0:00:03.9]} 51. Rc7+ {[%clk 0:00:10.4]} 51...
Kh6 {[%clk 0:00:04.1]} 52. Kxb7 {[%clk 0:00:10.2]} 52... h2 {[%clk 0:00:04.1]}
53. Rd1 {[%clk 0:00:10]} 53... Qg2+ {[%clk 0:00:04.2]} 54. Rc6 {[%clk
0:00:09.4]} 54... h1=Q {[%clk 0:00:04]} 55. Rxh1+ {[%clk 0:00:10.1]} 55... Qxh1
{[%clk 0:00:04.5]} 56. Kb6 {[%clk 0:00:11]} 56... Qf1 {[%clk 0:00:03.8]} 57. Kb7
{[%clk 0:00:10.6]} 57... Qb5+ {[%clk 0:00:03.7]} 58. Rb6 {[%clk 0:00:10.7]}
58... Qxa5 {[%clk 0:00:04.3]} 0-1

[Event "Early-Titled-Tuesday-Blitz-May-07-2024"]
[Site "Chess.com"]
[Date "2024.05.07"]
[Round "10"]
[White "tusplingher"]
[Black "krzyzan94"]
[Result "0-1"]
[WhiteElo "2566"]
[BlackElo "2790"]
[TimeControl "180+1"]
[EndTime "10:03:47 PDT"]
[Termination "krzyzan94 won by resignation"]

1. e4 {[%clk 0:03:00.9]} 1... c5 {[%clk 0:02:59.6]} 2. Nf3 {[%clk 0:03:00.8]}
2... d6 {[%clk 0:03:00]} 3. d4 {[%clk 0:03:00.8]} 3... cxd4 {[%clk 0:03:00.9]}
4. Nxd4 {[%clk 0:03:01.2]} 4... Nf6 {[%clk 0:03:01]} 5. Bd3 {[%clk 0:03:01.5]}
5... Nc6 {[%clk 0:02:57.1]} 6. Be3 {[%clk 0:03:01.2]} 6... Ng4 {[%clk
0:02:48.9]} 7. Nxc6 {[%clk 0:03:00.9]} 7... bxc6 {[%clk 0:02:49.3]} 8. Bd2
{[%clk 0:03:00.7]} 8... Qb6 {[%clk 0:02:37.2]} 9. O-O {[%clk 0:03:00.6]} 9...
Ne5 {[%clk 0:02:29.4]} 10. Bc3 {[%clk 0:02:40.1]} 10... Nxd3 {[%clk 0:02:23]}
11. cxd3 {[%clk 0:02:40.4]} 11... e5 {[%clk 0:02:21.2]} 12. d4 {[%clk 0:02:38]}
12... Ba6 {[%clk 0:01:58.4]} 13. Re1 {[%clk 0:02:34.6]} 13... f6 {[%clk
0:01:46.4]} 14. dxe5 {[%clk 0:02:06.6]} 14... dxe5 {[%clk 0:01:45]} 15. Qh5+
{[%clk 0:01:44.3]} 15... g6 {[%clk 0:01:43.5]} 16. Qf3 {[%clk 0:01:45]} 16...
Be7 {[%clk 0:01:35.7]} 17. Nd2 {[%clk 0:01:44.3]} 17... O-O {[%clk 0:01:34.8]}
18. Nb3 {[%clk 0:01:40.4]} 18... Bc4 {[%clk 0:01:26.5]} 19. Nd2 {[%clk
0:01:18.5]} 19... Be6 {[%clk 0:01:24.3]} 20. a3 {[%clk 0:01:06.4]} 20... Rad8
{[%clk 0:01:21.7]} 21. Rad1 {[%clk 0:01:04.6]} 21... Rd7 {[%clk 0:01:16.5]} 22.
Nf1 {[%clk 0:00:59.7]} 22... Rfd8 {[%clk 0:01:15.4]} 23. Rxd7 {[%clk 0:00:58.7]}
23... Rxd7 {[%clk 0:01:16.3]} 24. Rd1 {[%clk 0:00:54.9]} 24... Qb3 {[%clk
0:01:10.3]} 25. Rxd7 {[%clk 0:00:53.6]} 25... Bxd7 {[%clk 0:01:11.2]} 26. Qd3
{[%clk 0:00:50.3]} 26... Be6 {[%clk 0:01:06.8]} 27. Ne3 {[%clk 0:00:42]} 27...
Kf7 {[%clk 0:01:00]} 28. h3 {[%clk 0:00:41.9]} 28... h5 {[%clk 0:00:53.4]} 29.
Qa6 {[%clk 0:00:34.2]} 29... Qb6 {[%clk 0:00:48.4]} 30. Qd3 {[%clk 0:00:33.5]}
30... Qb5 {[%clk 0:00:47.7]} 31. Qd2 {[%clk 0:00:28.8]} 31... Qa4 {[%clk
0:00:44]} 32. Bb4 {[%clk 0:00:23.1]} 32... c5 {[%clk 0:00:41.4]} 33. Bc3 {[%clk
0:00:23]} 33... Qxe4 {[%clk 0:00:41.6]} 34. Qe2 {[%clk 0:00:19.7]} 34... c4
{[%clk 0:00:38.5]} 35. Qd2 {[%clk 0:00:19.1]} 35... Qd3 {[%clk 0:00:33.4]} 36.
Qe1 {[%clk 0:00:18.6]} 36... Bc5 {[%clk 0:00:32.4]} 37. Bb4 {[%clk 0:00:18.9]}
37... Bd4 {[%clk 0:00:32]} 38. Bc3 {[%clk 0:00:18.1]} 38... Bxc3 {[%clk
0:00:23]} 39. bxc3 {[%clk 0:00:18.3]} 39... f5 {[%clk 0:00:19.3]} 40. Qc1 {[%clk
0:00:18.3]} 40... f4 {[%clk 0:00:18]} 41. Nf1 {[%clk 0:00:18.6]} 41... Bd5
{[%clk 0:00:16]} 42. Qe1 {[%clk 0:00:14.6]} 42... Qe4 {[%clk 0:00:15.6]} 43.
Qxe4 {[%clk 0:00:14.9]} 43... Bxe4 {[%clk 0:00:16.5]} 44. Nd2 {[%clk 0:00:15.6]}
44... Bd3 {[%clk 0:00:17.3]} 45. f3 {[%clk 0:00:16.2]} 45... Ke6 {[%clk
0:00:16.9]} 46. Kf2 {[%clk 0:00:16.7]} 46... h4 {[%clk 0:00:12.9]} 47. Ke1
{[%clk 0:00:16]} 47... Kd6 {[%clk 0:00:12.2]} 48. Kd1 {[%clk 0:00:16.1]} 48...
Kd5 {[%clk 0:00:12.9]} 49. Ke1 {[%clk 0:00:15.2]} 49... g5 {[%clk 0:00:11.6]}
50. Kd1 {[%clk 0:00:14.6]} 50... Kc5 {[%clk 0:00:11]} 51. Kc1 {[%clk 0:00:14.9]}
51... Kb5 {[%clk 0:00:10.7]} 52. Kb2 {[%clk 0:00:14.7]} 52... a6 {[%clk
0:00:10]} 53. Ka2 {[%clk 0:00:14.4]} 53... Kc6 {[%clk 0:00:08]} 54. Kb2 {[%clk
0:00:14.8]} 54... Kd5 {[%clk 0:00:08.5]} 55. Kc1 {[%clk 0:00:15.4]} 55... e4
{[%clk 0:00:08.1]} 56. fxe4+ {[%clk 0:00:05.7]} 56... Bxe4 {[%clk 0:00:09]} 57.
Kd1 {[%clk 0:00:06.3]} 57... Bxg2 {[%clk 0:00:09.2]} 58. Ke2 {[%clk 0:00:07.2]}
58... Bxh3 {[%clk 0:00:09]} 59. Kf3 {[%clk 0:00:08.1]} 59... Bf5 {[%clk
0:00:08.9]} 60. Nf1 {[%clk 0:00:07.4]} 60... h3 {[%clk 0:00:09.1]} 61. Nh2
{[%clk 0:00:07.7]} 61... Ke5 {[%clk 0:00:09.7]} 62. Nf1 {[%clk 0:00:06.8]} 62...
g4+ {[%clk 0:00:09.8]} 63. Kf2 {[%clk 0:00:07.5]} 63... Be4 {[%clk 0:00:09.2]}
64. Nd2 {[%clk 0:00:07.5]} 64... g3+ {[%clk 0:00:09.8]} 65. Ke2 {[%clk
0:00:07.7]} 65... h2 {[%clk 0:00:08.6]} 66. Nxc4+ {[%clk 0:00:08.1]} 66... Kf6
{[%clk 0:00:08.5]} 67. Nb6 {[%clk 0:00:09]} 67... h1=Q {[%clk 0:00:08.2]} 0-1